bitfinex/quotes_BTCUSD_20220218
["timestamp","ask_amount","ask_price","bid_price","bid_amount"]
[1645214938718,0.21640663,40197.0,40196.0,0.3231422]
[1645214939318,0.21640663,40197.0,40194.0,0.02055894]
[1645214939519,0.21640663,40197.0,40194.0,0.02062673]
[1645214939520,0.06395819,40196.0,40194.0,0.02062673]
[1645214939719,0.21400412,40195.0,40194.0,0.02062673]
[1645214939921,0.26370412,40195.0,40194.0,0.02062673]
[1645214940366,0.76800523,40195.0,40194.0,0.02062673]
[1645214940566,0.76800523,40195.0,40194.0,0.02055894]
[1645214940770,0.51237397,40195.0,40194.0,0.02055894]
[1645214941071,1.45,40194.0,40192.0,0.06972673]
[1645214941267,0.251352,40193.0,40192.0,0.06972673]
[1645214941670,0.301352,40193.0,40192.0,0.06965894]
[1645214943870,0.301352,40193.0,40192.0,0.06715894]
[1645214945815,0.251352,40193.0,40192.0,0.06715894]
[1645214947217,0.301352,40193.0,40192.0,0.06715894]
[1645214948464,0.30254912,40193.0,40192.0,0.06715894]
[1645214952119,0.25254912,40193.0,40192.0,0.06715894]
[1645214953218,0.251352,40193.0,40192.0,0.06746367]
[1645214953619,0.201652,40193.0,40192.0,0.06746367]
[1645214954022,0.251652,40193.0,40192.0,0.06746367]
[1645214954620,0.65294864,40193.0,40192.0,0.06746367]
[1645214954819,0.301352,40193.0,40192.0,0.06746367]
[1645214955864,0.64775679,40193.0,40192.0,0.06746367]
[1645214956064,0.95165553,40193.0,40192.0,0.06746367]
[1645214956468,1.10960298,40193.0,40192.0,0.06746367]
[1645214956665,0.95165553,40193.0,40192.0,0.06746367]
[1645214956865,1.10960298,40193.0,40192.0,0.06746367]
[1645214958468,1.10960298,40193.0,40192.0,0.06891176]
[1645214958668,0.76319819,40193.0,40192.0,0.06891176]
[1645214959122,0.301352,40193.0,40192.0,0.06891176]
[1645214959719,0.251352,40193.0,40192.0,0.06891176]
[1645214960522,0.251352,40193.0,40192.0,0.16421756]
[1645214960523,0.201652,40193.0,40192.0,0.16421756]
[1645214961521,0.201652,40193.0,40192.0,0.06891176]
[1645214961920,0.201652,40193.0,40192.0,0.06546577]
[1645214962524,0.3821743,40202.0,40192.0,0.2127505]
[1645214962525,0.2324743,40202.0,40192.0,0.2127505]
[1645214962772,0.15785079,40202.0,40195.0,0.15750373]
[1645214962970,0.0092,40204.0,40195.0,0.15750373]
[1645214963170,0.0092,40204.0,40195.0,0.20750373]
[1645214963171,0.201652,40203.0,40195.0,0.20750373]
[1645214963370,0.201652,40202.0,40195.0,0.20750373]
[1645214963594,0.201652,40201.0,40197.0,0.09675194]
[1645214963973,0.201652,40201.0,40197.0,6.766e-05]
[1645214964572,0.201652,40201.0,40195.0,0.33252324]
[1645214964872,0.201652,40201.0,40197.0,6.766e-05]
[1645214965072,0.251652,40201.0,40197.0,6.766e-05]
[1645214965671,0.251652,40201.0,40195.0,0.33252324]
[1645214965870,0.251652,40201.0,40197.0,6.766e-05]
[1645214966914,0.251652,40201.0,40193.0,0.01027143]
[1645214967112,0.062228,40199.0,40197.0,6.766e-05]
[1645214967312,0.201652,40198.0,40197.0,6.766e-05]
[1645214968115,0.201652,40198.0,40193.0,0.01027143]
[1645214968314,0.201652,40198.0,40195.0,6.766e-05]
[1645214968916,0.201652,40198.0,40197.0,0.34430442]
[1645214970118,0.201652,40199.0,40197.0,0.34430442]
[1645214970369,0.201652,40199.0,40195.0,0.14735239]
[1645214970370,0.201652,40199.0,40195.0,6.766e-05]
[1645214970570,0.201652,40199.0,40193.0,0.15755616]
[1645214970770,0.201652,40199.0,40196.0,6.766e-05]
[1645214971373,0.201652,40199.0,40197.0,0.27888532]
[1645214972472,0.00080797,40200.0,40197.0,0.27888532]
[1645214972671,0.00080797,40200.0,40197.0,0.32888532]
[1645214972871,0.201652,40199.0,40197.0,0.32888532]
[1645214973273,0.00080797,40200.0,40197.0,0.32888532]
[1645214973472,0.00080797,40200.0,40198.0,0.14728473]
[1645214973673,0.00080797,40200.0,40198.0,0.19728473]
[1645214973876,0.201652,40199.0,40198.0,0.19728473]
[1645214974114,0.201652,40203.0,40198.0,0.19728473]
[1645214974520,0.0746143,40207.0,40201.0,0.14728473]
[1645214974717,0.0746143,40207.0,40202.0,0.78747474]
[1645214974915,0.0468675,40220.0,40212.0,0.14728473]
[1645214974916,0.18744968,40220.0,40212.0,0.14728473]
[1645214975117,0.18744968,40220.0,40217.0,0.28155088]
[1645214975118,0.03724629,40220.0,40217.0,0.28155088]
[1645214975416,0.03724629,40220.0,40219.0,0.09725089]
[1645214975417,0.0375675,40220.0,40219.0,0.09725089]
[1645214975616,0.23889829,40220.0,40216.0,0.010219]
[1645214975816,0.23889829,40220.0,40213.0,0.010219]
[1645214976018,0.2392195,40220.0,40213.0,0.010219]
[1645214976216,0.23889829,40220.0,40213.0,0.010219]
[1645214976417,0.201652,40221.0,40213.0,0.010219]
[1645214976615,0.124403,40219.0,40213.0,0.010219]
[1645214976815,0.201652,40218.0,40213.0,0.010219]
[1645214977216,0.01269794,40217.0,40213.0,0.010219]
[1645214977417,0.201652,40216.0,40213.0,0.010219]
[1645214977617,0.3028842,40215.0,40210.0,0.01]
[1645214977868,0.263854,40214.0,40210.0,0.01]
[1645214980968,0.2605964,40214.0,40210.0,0.01]
[1645214983617,0.31752889,40213.0,40207.0,0.22384289]
[1645214983820,0.201652,40212.0,40207.0,0.22384289]
[1645214984016,0.251352,40212.0,40211.0,0.00129284]
[1645214984417,0.55525074,40212.0,40211.0,0.00129284]
[1645214984615,0.251352,40212.0,40211.0,0.00129284]
[1645214984816,0.351352,40212.0,40211.0,0.00129284]
[1645214986974,0.251352,40212.0,40211.0,0.00129284]
[1645214987274,0.351352,40212.0,40211.0,0.00129284]
[1645214988275,0.351352,40212.0,40211.0,0.00272293]
[1645214989720,0.251352,40212.0,40211.0,0.00272293]
[1645214989923,0.351352,40212.0,40211.0,0.00272293]
[1645214990825,0.251352,40212.0,40211.0,0.00272293]
[1645214991224,0.201652,40212.0,40211.0,0.00272293]
[1645214991823,0.201652,40212.0,40211.0,0.31484679]
[1645214992221,0.201652,40212.0,40211.0,0.36484679]
[1645214992423,0.0093,40218.0,40211.0,0.36484679]
[1645214992424,0.071497,40218.0,40211.0,0.36484679]
[1645214992622,0.201652,40217.0,40216.0,0.14728473]
[1645214992873,0.00032121,40221.0,40216.0,0.14728473]
[1645214993070,0.00032121,40222.0,40218.0,0.14728473]
[1645214993273,0.201652,40221.0,40217.0,0.10977114]
[1645214993472,0.201652,40221.0,40215.0,0.010219]
[1645214993671,0.20675505,40220.0,40215.0,0.010219]
[1645214993972,0.50555074,40219.0,40212.0,0.010219]
[1645214994270,0.55555074,40219.0,40212.0,0.010219]
[1645214994473,0.65555074,40219.0,40212.0,0.010219]
[1645214994670,0.71775574,40219.0,40212.0,0.010219]
[1645214994870,0.84216474,40219.0,40212.0,0.010219]
[1645214995074,0.01238102,40218.0,40211.0,0.00401486]
[1645214995272,0.201652,40217.0,40211.0,0.00401486]
[1645214995471,0.01396967,40216.0,40211.0,0.00401486]
[1645214995671,0.201652,40215.0,40211.0,0.00401486]
[1645214995970,0.201652,40213.0,40211.0,0.00401486]
[1645214996370,0.26761026,40213.0,40211.0,0.00401486]
[1645214996620,0.21474443,40212.0,40211.0,0.00401486]
[1645214996820,0.201652,40212.0,40211.0,0.00401486]
[1645214998721,0.201652,40212.0,40209.0,0.010219]
[1645214998919,0.201652,40212.0,40210.0,0.31985112]
[1645214999723,0.201652,40212.0,40209.0,0.010219]
[1645215000575,0.01690285,40213.0,40210.0,0.14728473]
[1645215000770,0.201652,40212.0,40209.0,2.21037894]
[1645215000968,0.01,40215.0,40209.0,2.26037894]
[1645215000969,0.201652,40214.0,40209.0,2.26037894]
[1645215001269,0.01,40215.0,40214.0,0.32768173]
[1645215001469,0.201652,40215.0,40212.0,0.010219]
[1645215001671,0.07601047,40218.0,40212.0,0.010219]
[1645215001871,0.201652,40217.0,40212.0,0.010219]
[1645215002470,0.201652,40217.0,40215.0,0.35150701]
[1645215002670,0.201652,40217.0,40212.0,0.010219]
[1645215003370,0.201652,40217.0,40212.0,0.15750373]
[1645215003571,0.201652,40217.0,40212.0,0.010219]
[1645215004028,0.263852,40217.0,40215.0,0.14728473]
[1645215004219,0.263852,40217.0,40212.0,0.010219]
[1645215004622,0.263852,40217.0,40209.0,0.010219]
[1645215004623,0.30378133,40216.0,40209.0,0.010219]
[1645215004824,0.201652,40212.0,40209.0,0.010219]
[1645215005023,0.00011494,40209.0,40207.0,0.22384289]
[1645215005220,0.201652,40208.0,40207.0,0.22384289]
[1645215007223,0.00011494,40209.0,40207.0,0.57774163]
[1645215007426,0.00011494,40209.0,40208.0,0.31411774]
[1645215007624,0.00011494,40209.0,40208.0,0.46140247]
[1645215007868,0.00011494,40209.0,40208.0,0.51140247]
[1645215008373,0.00011494,40209.0,40208.0,1.04497847]
[1645215008967,0.00011494,40209.0,40208.0,1.09467847]
[1645215009368,0.00011494,40209.0,40208.0,0.79077973]
[1645215009569,0.00011494,40209.0,40208.0,1.16151837]
[1645215009771,0.00011494,40209.0,40208.0,0.82794237]
[1645215010571,0.00011494,40209.0,40208.0,1.16151837]
[1645215010969,0.00011494,40209.0,40208.0,1.51151837]
[1645215011170,0.00011494,40209.0,40208.0,1.16151837]
[1645215013121,0.00011494,40209.0,40208.0,1.17794237]
[1645215013325,0.00011494,40209.0,40208.0,1.51151837]
[1645215013523,0.00011494,40209.0,40208.0,1.17794237]
[1645215013727,0.30389874,40229.0,40215.0,0.15]
[1645215013929,0.05,40230.0,40228.0,0.333576]
[1645215014125,0.0011,40234.0,40233.0,0.14728473]
[1645215014325,0.0011,40234.0,40233.0,0.49107973]
[1645215014726,0.0011,40234.0,40233.0,0.64107973]
[1645215015375,0.0011,40234.0,40233.0,0.30750373]
[1645215015676,0.0011,40236.0,40233.0,0.30750373]
[1645215015677,0.0011,40236.0,40233.0,0.64107973]
[1645215015874,0.0011,40236.0,40235.0,0.443795]
[1645215016273,0.0001,40236.0,40235.0,0.84692206]
[1645215016677,0.0011,40241.0,40237.0,0.2]
[1645215016874,0.0011,40241.0,40240.0,0.443795]
[1645215017074,0.0011,40241.0,40240.0,0.89420679]
[1645215017276,0.0011,40241.0,40240.0,0.99420679]
[1645215017675,0.0022,40244.0,40240.0,0.99420679]
[1645215017676,0.0011,40244.0,40240.0,0.99420679]
[1645215017875,0.0011,40244.0,40243.0,0.110219]
[1645215018078,0.0011,40244.0,40243.0,0.443795]
[1645215018276,0.0011,40244.0,40243.0,0.593495]
[1645215018678,0.0001,40244.0,40243.0,0.593495]
[1645215019331,0.01,40249.0,40245.0,1.092876]
[1645215019531,0.01,40249.0,40246.0,0.493495]
[1645215019730,0.01,40249.0,40246.0,0.79077973]
[1645215019933,0.01,40249.0,40246.0,0.64077973]
[1645215020133,0.01,40249.0,40246.0,0.19698473]
[1645215020338,0.01,40249.0,40246.0,0.14728473]
[1645215021631,0.202752,40247.0,40246.0,0.14728473]
[1645215021831,0.0011,40247.0,40246.0,0.14728473]
[1645215023273,0.202752,40247.0,40242.0,0.40383253]
[1645215023473,0.202752,40247.0,40246.0,0.00420062]
[1645215024475,0.0011,40247.0,40246.0,0.00420062]
[1645215025670,0.0011,40247.0,40246.0,0.01441962]
[1645215026074,0.0011,40247.0,40246.0,0.00420062]
[1645215026279,0.202752,40247.0,40246.0,0.00420062]
[1645215027018,0.0011,40247.0,40246.0,0.00420062]
[1645215027218,0.0011,40247.0,40246.0,0.01441962]
[1645215027417,0.0011,40247.0,40246.0,0.34799562]
[1645215027816,0.0011,40247.0,40246.0,0.01441962]
[1645215028216,0.0011,40247.0,40246.0,0.34799562]
[1645215028818,0.00185099,40247.0,40246.0,0.010219]
[1645215029419,0.00185099,40247.0,40245.0,0.05]
[1645215032082,0.00185099,40247.0,40239.0,0.0093]
[1645215032273,0.062155,40245.0,40239.0,0.0093]
[1645215032471,0.062155,40245.0,40239.0,0.019519]
[1645215032472,0.50477906,40244.0,40239.0,0.019519]
[1645215032671,0.30312706,40244.0,40241.0,0.010219]
[1645215032971,0.00185099,40247.0,40242.0,0.12699998]
[1645215033175,0.00178581,40247.0,40244.0,0.010219]
[1645215033370,0.00178581,40247.0,40246.0,0.010219]
[1645215035126,0.00178581,40247.0,40246.0,0.343795]
[1645215035522,0.00178581,40247.0,40246.0,0.010219]
[1645215036126,0.00178581,40247.0,40246.0,0.343795]
[1645215036328,0.0011,40252.0,40248.0,1.35]
[1645215036528,0.0022,40254.0,40252.0,0.333576]
[1645215036924,0.0022,40254.0,40252.0,0.433576]
[1645215037525,0.0021,40258.0,40257.0,0.352976]
[1645215037773,0.0021,40258.0,40257.0,0.363195]
[1645215038571,0.0021,40258.0,40257.0,0.34985931]
[1645215038773,0.00260052,40258.0,40257.0,0.34985931]
[1645215039074,0.00260052,40258.0,40257.0,0.01628331]
[1645215039572,0.00260052,40258.0,40257.0,0.02650231]
[1645215040378,0.00260052,40258.0,40257.0,0.36007831]
[1645215040872,0.00260052,40258.0,40257.0,0.02650231]
[1645215041526,0.00260052,40258.0,40257.0,0.01628331]
[1645215042522,0.54135611,40258.0,40257.0,0.01628331]
[1645215042722,0.89418317,40258.0,40257.0,0.01628331]
[1645215043424,0.99418317,40258.0,40257.0,3.31e-06]
[1645215043624,1.04418317,40258.0,40257.0,3.31e-06]
[1645215043823,1.04418317,40258.0,40257.0,0.00140347]
[1645215044021,0.0013956,40257.0,40256.0,0.00286243]
[1645215044224,0.55502572,40257.0,40256.0,0.00286243]
[1645215044629,0.65502572,40257.0,40256.0,0.00286243]
[1645215046672,0.35324812,40257.0,40256.0,0.00286243]
[1645215046871,0.25324812,40257.0,40256.0,0.00286243]
[1645215047072,0.35324812,40257.0,40256.0,0.00286243]
[1645215047271,0.25324812,40257.0,40256.0,0.00286243]
[1645215047474,0.25324812,40257.0,40256.0,0.01308143]
[1645215047475,0.00050052,40257.0,40256.0,0.01308143]
[1645215047873,0.00050052,40257.0,40256.0,0.33419059]
[1645215048073,0.00050052,40257.0,40256.0,0.66776659]
[1645215048272,0.00050052,40257.0,40256.0,0.66892369]
[1645215048473,0.00050052,40257.0,40256.0,0.34781453]
[1645215048673,0.00050052,40257.0,40256.0,0.00401953]
[1645215048877,0.20215252,40257.0,40256.0,0.00401953]
[1645215049132,0.19215252,40257.0,40256.0,0.00401953]
[1645215050734,0.49393012,40257.0,40256.0,0.00401953]
[1645215050938,0.64363012,40257.0,40256.0,0.00401953]
[1645215053767,0.64363012,40257.0,40256.0,0.00529107]
[1645215055571,0.59393012,40257.0,40256.0,0.00529107]
[1645215057422,0.64363012,40257.0,40256.0,0.00529107]
[1645215058323,0.64432834,40257.0,40253.0,0.010219]
[1645215058520,0.75754047,40257.0,40253.0,0.010219]
[1645215059720,0.60754047,40257.0,40253.0,0.010219]
[1645215059922,0.60754047,40257.0,40256.0,0.010219]
[1645215059923,0.25613135,40257.0,40256.0,0.010219]
[1645215060124,0.19367075,40257.0,40256.0,0.010219]
[1645215060777,1.45,40255.0,40253.0,0.010219]
[1645215060981,1.45,40255.0,40243.0,0.0094]
[1645215060982,2.0439986,40254.0,40243.0,0.0094]
[1645215061178,2.0439986,40254.0,40233.0,0.14728473]
[1645215061179,0.1,40249.0,40233.0,0.14728473]
[1645215061379,0.1,40249.0,40227.0,0.3025]
[1645215061380,0.1,40243.0,40234.0,0.0091]
[1645215061576,0.1,40243.0,40223.0,0.41090128]
[1645215061577,0.241921,40242.0,40225.0,0.21089324]
[1645215061778,0.26093092,40238.0,40231.0,0.32881023]
[1645215061982,0.3041,40237.0,40231.0,0.32881023]
[1645215062376,0.4041,40237.0,40231.0,0.32881023]
[1645215062578,0.4041,40237.0,40226.0,0.1064028]
[1645215063079,0.4041,40237.0,40226.0,0.0091]
[1645215063080,0.062182,40234.0,40226.0,0.0091]
[1645215063281,0.0497,40233.0,40226.0,0.0091]
[1645215063581,0.241921,40233.0,40227.0,0.34483978]
[1645215063778,0.3017776,40232.0,40220.0,0.21089324]
[1645215064046,0.01447516,40230.0,40220.0,0.12490801]
[1645215064232,0.0497,40229.0,40220.0,0.12490801]
[1645215064431,0.0497,40229.0,40221.0,0.54403024]
[1645215064636,0.0497,40229.0,40222.0,0.31089324]
[1645215064829,0.0497,40229.0,40228.0,0.05]
[1645215065030,0.0497,40229.0,40228.0,0.35521809]
[1645215066335,0.0497,40229.0,40224.0,0.062162]
[1645215066535,0.37858944,40228.0,40218.0,0.14728473]
[1645215066736,0.37858944,40228.0,40218.0,0.15668473]
[1645215066737,0.192221,40226.0,40218.0,0.15668473]
[1645215066936,0.0497,40227.0,40218.0,0.15668473]
[1645215066937,0.0497,40225.0,40218.0,0.15668473]
[1645215067140,0.241921,40224.0,40218.0,0.15668473]
[1645215067336,0.20823304,40222.0,40218.0,0.48740679]
[1645215067536,0.431951,40227.0,40223.0,0.35535335]
[1645215067772,0.01213328,40225.0,40223.0,0.35535335]
[1645215068172,0.0497,40224.0,40223.0,0.35535335]
[1645215070581,0.3505512,40224.0,40223.0,0.35535335]
[1645215070776,0.4505512,40224.0,40223.0,0.35535335]
[1645215071279,0.6005512,40224.0,40223.0,0.35535335]
[1645215073642,0.6005512,40224.0,40223.0,0.35665306]
[1645215073842,0.6005512,40224.0,40223.0,0.35801409]
[1645215079041,0.2997,40224.0,40223.0,0.35801409]
[1645215079231,0.1497,40224.0,40223.0,0.35801409]
[1645215079429,0.0997,40224.0,40223.0,0.35801409]
[1645215079831,0.5005512,40224.0,40223.0,0.35801409]
[1645215080138,0.5005512,40224.0,40216.0,0.0011]
[1645215080139,0.124424,40222.0,40216.0,0.0011]
[1645215080332,0.1,40217.0,40216.0,0.0011]
[1645215080531,0.61806555,40217.0,40216.0,0.0011]
[1645215080732,0.19407411,40216.0,40214.0,1e-08]
[1645215081032,0.3497,40215.0,40214.0,1e-08]
[1645215081433,0.4497,40215.0,40214.0,1e-08]
[1645215082636,0.1497,40215.0,40214.0,1e-08]
[1645215082880,0.0497,40215.0,40214.0,1e-08]
[1645215083781,0.010219,40220.0,40214.0,1e-08]
[1645215083981,0.0096,40221.0,40214.0,1e-08]
[1645215084381,0.0096,40221.0,40218.0,0.29433971]
[1645215084682,0.3,40224.0,40218.0,0.1005859]
[1645215084881,0.3,40224.0,40214.0,1e-08]
[1645215085481,0.362188,40224.0,40214.0,1e-08]
[1645215085782,0.3473961,40220.0,40214.0,0.05000001]
[1645215085982,0.4473961,40220.0,40214.0,1e-08]
[1645215086185,0.35,40219.0,40214.0,1e-08]
[1645215086382,0.3,40218.0,40214.0,1e-08]
[1645215086628,0.0497,40217.0,40214.0,1e-08]
[1645215086825,0.211911,40216.0,40214.0,1e-08]
[1645215087225,0.161911,40216.0,40214.0,1e-08]
[1645215087625,0.261911,40216.0,40214.0,1e-08]
[1645215087829,0.161911,40216.0,40214.0,1e-08]
[1645215088128,0.261911,40216.0,40214.0,1e-08]
[1645215088728,0.38635128,40216.0,40214.0,1e-08]
[1645215088927,0.48635128,40216.0,40214.0,1e-08]
[1645215089128,0.20215995,40215.0,40214.0,1e-08]
[1645215089330,0.25185995,40215.0,40214.0,1e-08]
[1645215090580,0.25185995,40215.0,40209.0,0.00134481]
[1645215090785,0.25185995,40215.0,40209.0,4.481e-05]
[1645215090786,0.1,40210.0,40209.0,4.481e-05]
[1645215090980,0.211937,40210.0,40209.0,4.481e-05]
[1645215091180,1.4,40209.0,40203.0,0.001]
[1645215091378,0.1,40206.0,40203.0,0.001]
[1645215091579,0.21515553,40206.0,40203.0,0.001]
[1645215091779,0.11515553,40206.0,40203.0,0.001]
[1645215091980,0.0497,40206.0,40203.0,0.001]
[1645215092180,0.111934,40206.0,40203.0,0.001]
[1645215092779,0.50917255,40206.0,40203.0,0.001]
[1645215093180,0.60917255,40206.0,40203.0,0.001]
[1645215093481,0.50917255,40206.0,40203.0,0.001]
[1645215094036,0.61437946,40206.0,40203.0,0.001]
[1645215095832,0.61437946,40206.0,40203.0,0.0010624]
[1645215096832,0.61437946,40206.0,40203.0,0.001]
[1645215097033,0.61437946,40206.0,40203.0,0.0010624]
[1645215098076,0.61437946,40206.0,40203.0,0.001]
[1645215098279,0.61437946,40206.0,40203.0,0.00106105]
[1645215098679,0.61840997,40206.0,40203.0,0.00106105]
[1645215099080,1.3593,40205.0,40203.0,0.00052105]
[1645215099281,1.3593,40205.0,40193.0,0.00027143]
[1645215099282,0.062249,40202.0,40193.0,0.00027143]
[1645215099482,0.062249,40202.0,40182.0,0.0011]
[1645215099483,0.258469,40194.0,40192.0,0.00127143]
[1645215099680,0.36098601,40198.0,40194.0,0.00554753]
[1645215099881,1.4497,40197.0,40192.0,0.00127143]
[1645215100080,0.24405168,40194.0,40192.0,0.00127143]
[1645215100283,0.0497,40193.0,40192.0,0.001]
[1645215101542,0.35060476,40193.0,40192.0,0.001]
[1645215102035,0.45060476,40193.0,40192.0,0.001]
[1645215103236,0.1497,40193.0,40192.0,0.001]
[1645215103540,0.0497,40193.0,40192.0,0.001]
[1645215105686,0.0497,40193.0,40192.0,0.33430808]
[1645215106887,0.0497,40193.0,40192.0,0.001]
[1645215107789,0.059919,40193.0,40192.0,0.001]
[1645215108489,0.0497,40193.0,40192.0,0.00580548]
[1645215108692,0.010219,40195.0,40192.0,0.00580548]
[1645215108888,0.010219,40195.0,40192.0,0.00607691]
[1645215111035,0.90950476,40200.0,40193.0,0.14728473]
[1645215111036,0.010219,40200.0,40193.0,0.14728473]
[1645215111238,0.05020333,40210.0,40198.0,0.05]
[1645215111239,0.00020333,40210.0,40198.0,0.05]
[1645215111430,0.00020333,40208.0,40200.0,0.31486909]
[1645215111829,0.00020333,40208.0,40204.0,0.10141632]
[1645215112229,0.00020333,40208.0,40204.0,0.15141632]
[1645215112430,0.00020333,40208.0,40204.0,0.05]
[1645215112628,0.01042233,40208.0,40204.0,0.05006454]
[1645215112883,0.01042233,40208.0,40204.0,6.454e-05]
[1645215113684,0.062219,40207.0,40199.0,0.15884269]
[1645215113889,0.062219,40207.0,40204.0,6.454e-05]
[1645215113890,0.010219,40206.0,40204.0,6.454e-05]
[1645215114084,0.01042233,40206.0,40204.0,6.454e-05]
[1645215114887,0.01042233,40206.0,40200.0,0.2979704]
[1645215115087,0.01042233,40206.0,40203.0,6.454e-05]
[1645215115689,0.06042233,40206.0,40203.0,6.454e-05]
[1645215115894,0.02549259,40205.0,40203.0,6.454e-05]
[1645215116091,0.14995859,40205.0,40194.0,0.12446578]
[1645215116290,0.01635275,40203.0,40202.0,6.454e-05]
[1645215117227,0.01635275,40203.0,40195.0,0.28559185]
[1645215117426,0.134685,40205.0,40200.0,6.454e-05]
[1645215117427,0.062233,40201.0,40200.0,6.454e-05]
[1645215117627,0.122452,40202.0,40200.0,6.454e-05]
[1645215118428,0.122452,40202.0,40195.0,0.28559185]
[1645215118626,0.122452,40202.0,40199.0,6.454e-05]
[1645215118828,0.112232,40202.0,40199.0,6.454e-05]
[1645215119335,0.23580707,40205.0,40199.0,6.454e-05]
[1645215119336,0.00112207,40205.0,40199.0,6.454e-05]
[1645215119529,0.00112207,40205.0,40200.0,0.14728473]
[1645215119729,0.00112207,40205.0,40201.0,0.59065205]
[1645215120030,0.00112207,40205.0,40201.0,0.74065205]
[1645215120293,0.00112207,40205.0,40204.0,0.14728473]
[1645215120496,0.00264727,40206.0,40205.0,1.583386]
[1645215120693,0.00264727,40206.0,40205.0,1.3089]
[1645215120893,0.00264727,40206.0,40205.0,0.0589]
[1645215121093,0.00264727,40206.0,40205.0,0.35980476]
[1645215121897,0.0622,40224.0,40206.0,1.4]
[1645215122096,0.005518,40227.0,40217.0,0.14728473]
[1645215122297,0.005518,40227.0,40218.0,0.059]
[1645215122493,0.005518,40227.0,40221.0,0.14728473]
[1645215122693,0.005518,40227.0,40218.0,0.0093]
[1645215122893,0.19453551,40223.0,40217.0,0.15606203]
[1645215123096,0.067714,40227.0,40217.0,0.15606203]
[1645215123294,0.12990935,40227.0,40217.0,0.15606203]
[1645215123593,0.11771335,40227.0,40212.0,0.30090476]
[1645215123793,0.11771335,40227.0,40212.0,0.35090476]
[1645215124037,0.06771335,40227.0,40212.0,0.30090476]
[1645215124229,0.124391,40222.0,40212.0,0.30090476]
[1645215124435,0.124391,40222.0,40211.0,0.05]
[1645215124628,0.124391,40222.0,40214.0,0.11372155]
[1645215124830,0.174391,40222.0,40214.0,0.11372155]
[1645215125429,0.062204,40221.0,40214.0,0.11372155]
[1645215127434,0.3068442,40219.0,40210.0,0.0093]
[1645215127639,0.124413,40218.0,40210.0,0.0093]
[1645215127882,0.01639017,40214.0,40206.0,6.755e-05]
[1645215128081,0.01639017,40214.0,40199.0,0.49020476]
[1645215128283,0.0497,40213.0,40206.0,6.755e-05]
[1645215128484,0.12926586,40209.0,40206.0,6.755e-05]
[1645215128682,0.32112989,40207.0,40206.0,6.755e-05]
[1645215128882,0.47112989,40207.0,40206.0,6.755e-05]
[1645215129282,0.01436395,40205.0,40195.0,0.31112376]
[1645215129586,0.01436395,40205.0,40204.0,6.755e-05]
[1645215130389,0.06406395,40205.0,40204.0,6.755e-05]
[1645215130583,0.06406395,40205.0,40195.0,0.010219]
[1645215130584,0.32843655,40203.0,40195.0,0.010219]
[1645215130784,0.21193374,40203.0,40202.0,6.755e-05]
[1645215131182,0.43024258,40203.0,40202.0,6.755e-05]
[1645215131632,0.49247658,40203.0,40194.0,0.00027143]
[1645215131830,0.49247658,40203.0,40200.0,6.755e-05]
[1645215132233,0.10104128,40202.0,40200.0,6.755e-05]
[1645215132430,0.0497,40201.0,40200.0,6.755e-05]
[1645215132830,0.0497,40201.0,40194.0,0.00027143]
[1645215133029,0.0497,40201.0,40193.0,0.0093]
[1645215133030,0.062239,40198.0,40193.0,0.00957143]
[1645215133229,0.0497,40197.0,40193.0,0.00957143]
[1645215133633,0.0497,40197.0,40193.0,0.00027143]
[1645215133832,0.0497,40197.0,40192.0,0.00127143]
[1645215134232,0.0497,40197.0,40193.0,6.744e-05]
[1645215134432,0.0497,40197.0,40193.0,0.00033887]
[1645215135279,0.0497,40197.0,40193.0,0.11947021]
[1645215135482,0.071939,40198.0,40197.0,0.0994]
[1645215135682,0.062239,40198.0,40197.0,0.0994]
[1645215135883,0.1,40208.0,40197.0,0.0994]
[1645215135884,0.062227,40200.0,40197.0,0.0994]
[1645215136083,0.062227,40200.0,40198.0,0.28475257]
[1645215136385,0.0497,40199.0,40198.0,0.28475257]
[1645215136581,0.0497,40205.0,40198.0,0.28475257]
[1645215137781,0.0497,40205.0,40200.0,0.12267728]
[1645215138585,0.0099,40206.0,40200.0,0.17267728]
[1645215138884,0.2995,40212.0,40200.0,0.17267728]
[1645215138885,0.25130959,40212.0,40200.0,0.17267728]
[1645215139147,0.25130959,40212.0,40197.0,0.3994]
[1645215139148,0.0497,40211.0,40201.0,6.743e-05]
[1645215139346,0.0595,40211.0,40201.0,6.743e-05]
[1645215140143,0.0595,40211.0,40197.0,0.22037778]
[1645215140345,0.0595,40211.0,40204.0,6.743e-05]
[1645215140346,0.062215,40208.0,40204.0,6.743e-05]
[1645215140549,0.3,40207.0,40204.0,6.743e-05]
[1645215140745,0.0458,40206.0,40204.0,6.743e-05]
[1645215140945,0.01242358,40205.0,40204.0,6.743e-05]
[1645215141151,0.05822358,40205.0,40204.0,6.743e-05]
[1645215141343,0.05822358,40205.0,40197.0,0.22037778]
[1645215141547,0.01516499,40204.0,40202.0,6.743e-05]
[1645215142646,0.01516499,40204.0,40197.0,0.22037778]
[1645215142875,0.01516499,40204.0,40199.0,0.27061193]
[1645215143476,0.01516499,40204.0,40203.0,0.0041352]
[1645215147634,0.3,40204.0,40203.0,0.0041352]
[1645215147832,0.3458,40204.0,40203.0,0.0041352]
[1645215148231,0.4458,40204.0,40203.0,0.0041352]
[1645215148630,0.44721042,40204.0,40197.0,0.0994]
[1645215148832,0.062235,40202.0,40201.0,6.732e-05]
[1645215149029,0.108035,40202.0,40201.0,6.732e-05]
[1645215149731,0.108035,40202.0,40197.0,0.0994]
[1645215149932,0.108035,40202.0,40199.0,6.732e-05]
[1645215150377,0.0458,40202.0,40199.0,6.732e-05]
[1645215151077,0.0458,40202.0,40198.0,6.732e-05]
[1645215151279,0.09964829,40201.0,40198.0,6.732e-05]
[1645215151578,0.108037,40200.0,40198.0,6.732e-05]
[1645215151776,0.3,40199.0,40198.0,6.732e-05]
[1645215151976,0.3458,40199.0,40198.0,6.732e-05]
[1645215152176,0.3458,40199.0,40197.0,0.0994]
[1645215152381,0.77913456,40198.0,40197.0,0.0994]
[1645215152579,0.82493456,40198.0,40197.0,0.0994]
[1645215152881,0.92493456,40198.0,40197.0,0.0994]
[1645215153277,0.66812474,40198.0,40197.0,0.0994]
[1645215156629,1.46444474,40198.0,40197.0,0.0994]
[1645215157231,1.74896892,40198.0,40197.0,0.0994]
[1645215158977,2.50826892,40198.0,40197.0,0.0994]
[1645215159176,2.51441922,40198.0,40197.0,0.0994]